[Event "Early-Titled-Tuesday-Blitz-February-27-2024"]
[Site "Chess.com"]
[Date "2024.02.27"]
[Round "4"]
[White "Alex_Sahakyan2006"]
[Black "FARIZA2018"]
[Result "0-1"]
[WhiteElo "2828"]
[BlackElo "2597"]
[TimeControl "180+1"]
[EndTime "8:39:05 PST"]
[Termination "FARIZA2018 won on time"]

1. Nf3 {[%clk 0:03:00.9]} 1... d5 {[%clk 0:02:59.7]} 2. b3 {[%clk 0:03:00.8]}
2... Nf6 {[%clk 0:02:59.4]} 3. Bb2 {[%clk 0:03:00]} 3... e6 {[%clk 0:02:59.5]}
4. e3 {[%clk 0:02:58.9]} 4... c5 {[%clk 0:02:59.4]} 5. c4 {[%clk 0:02:58.9]}
5... Nc6 {[%clk 0:02:58.7]} 6. cxd5 {[%clk 0:02:55.7]} 6... exd5 {[%clk
0:02:57.7]} 7. d4 {[%clk 0:02:53.8]} 7... Bg4 {[%clk 0:02:54.2]} 8. dxc5 {[%clk
0:02:48.8]} 8... Bxc5 {[%clk 0:02:54.1]} 9. Be2 {[%clk 0:02:48.9]} 9... O-O
{[%clk 0:02:47.2]} 10. O-O {[%clk 0:02:49]} 10... Qe7 {[%clk 0:02:17.8]} 11.
Nbd2 {[%clk 0:02:41.7]} 11... Rfd8 {[%clk 0:02:15.9]} 12. Rc1 {[%clk 0:02:32.4]}
12... Bb6 {[%clk 0:02:15.5]} 13. Re1 {[%clk 0:02:10.4]} 13... Rac8 {[%clk
0:02:12.8]} 14. h3 {[%clk 0:02:03.3]} 14... Bh5 {[%clk 0:02:10.1]} 15. Nh4
{[%clk 0:01:53.7]} 15... Bxe2 {[%clk 0:02:07.8]} 16. Qxe2 {[%clk 0:01:54.2]}
16... Qe6 {[%clk 0:02:02.9]} 17. Qf3 {[%clk 0:01:25.6]} 17... Ne4 {[%clk
0:02:01.5]} 18. Nxe4 {[%clk 0:01:19.3]} 18... dxe4 {[%clk 0:02:01.7]} 19. Qg3
{[%clk 0:01:17.9]} 19... f6 {[%clk 0:02:00.3]} 20. Red1 {[%clk 0:00:50.3]} 20...
Bc7 {[%clk 0:01:29.3]} 21. Rxd8+ {[%clk 0:00:39.4]} 21... Bxd8 {[%clk
0:01:29.4]} 22. Rd1 {[%clk 0:00:23.2]} 22... Bc7 {[%clk 0:01:28.7]} 23. Qg4
{[%clk 0:00:23.1]} 23... Qxg4 {[%clk 0:01:20.6]} 24. hxg4 {[%clk 0:00:24]} 24...
Be5 {[%clk 0:01:06.9]} 25. Ba3 {[%clk 0:00:11]} 25... g6 {[%clk 0:01:01.1]} 26.
f4 {[%clk 0:00:09.6]} 26... exf3 {[%clk 0:00:59.2]} 27. gxf3 {[%clk 0:00:10.2]}
27... Bc7 {[%clk 0:00:46.9]} 28. f4 {[%clk 0:00:06.7]} 28... Bb6 {[%clk
0:00:46.5]} 29. Kf2 {[%clk 0:00:05.3]} 29... Re8 {[%clk 0:00:45.3]} 30. Ng2
{[%clk 0:00:05.8]} 30... g5 {[%clk 0:00:35.2]} 31. Kf3 {[%clk 0:00:04.8]} 31...
gxf4 {[%clk 0:00:33.9]} 32. exf4 {[%clk 0:00:03.6]} 32... Nd4+ {[%clk
0:00:33.5]} 33. Kg3 {[%clk 0:00:04.2]} 33... Re2 {[%clk 0:00:32.2]} 34. Nh4
{[%clk 0:00:01.9]} 34... Rxa2 {[%clk 0:00:31.1]} 35. Be7 {[%clk 0:00:02.1]}
35... Kf7 {[%clk 0:00:30.7]} 36. Bd8 {[%clk 0:00:02.4]} 36... Ne2+ {[%clk
0:00:30.2]} 37. Kf3 {[%clk 0:00:02.7]} 37... Nd4+ {[%clk 0:00:25.5]} 38. Kg3
{[%clk 0:00:03]} 38... Ne2+ {[%clk 0:00:15.9]} 39. Kf3 {[%clk 0:00:03.5]} 39...
Ng1+ {[%clk 0:00:16.2]} 40. Ke4 {[%clk 0:00:03.1]} 40... Re2+ {[%clk 0:00:15.8]}
41. Kf5 {[%clk 0:00:02.5]} 41... Bxd8 {[%clk 0:00:05.6]} 42. Rxd8 {[%clk
0:00:03.4]} 42... Nh3 {[%clk 0:00:06.1]} 43. Rd7+ {[%clk 0:00:03.4]} 43... Re7
{[%clk 0:00:06.5]} 44. Rd6 {[%clk 0:00:03.6]} 44... Kg7 {[%clk 0:00:04.5]} 45.
Ng2 {[%clk 0:00:02.2]} 45... Rf7 {[%clk 0:00:04.3]} 46. Ne3 {[%clk 0:00:02.4]}
46... Nf2 {[%clk 0:00:04.4]} 47. Nd5 {[%clk 0:00:02.5]} 47... Nd3 {[%clk
0:00:04]} 48. Nxf6 {[%clk 0:00:01.8]} 48... Nxf4 {[%clk 0:00:04.1]} 49. g5
{[%clk 0:00:02.1]} 49... Nh5 {[%clk 0:00:03.9]} 0-1

[Event "Early-Titled-Tuesday-Blitz-February-27-2024"]
[Site "Chess.com"]
[Date "2024.02.27"]
[Round "4"]
[White "Suleyman_Chess06"]
[Black "andrzej"]
[Result "1/2-1/2"]
[WhiteElo "2717"]
[BlackElo "2505"]
[TimeControl "180+1"]
[EndTime "8:39:06 PST"]
[Termination "Game drawn by stalemate"]

1. Nf3 {[%clk 0:03:00.9]} 1... d5 {[%clk 0:02:54.7]} 2. g3 {[%clk 0:03:00.9]}
2... c5 {[%clk 0:02:54.3]} 3. Bg2 {[%clk 0:03:01.6]} 3... Nc6 {[%clk 0:02:54.9]}
4. d4 {[%clk 0:03:02.3]} 4... Nf6 {[%clk 0:02:55.3]} 5. O-O {[%clk 0:03:02.3]}
5... e6 {[%clk 0:02:55.8]} 6. c4 {[%clk 0:03:02.3]} 6... dxc4 {[%clk 0:02:55.7]}
7. Qa4 {[%clk 0:03:02.7]} 7... Bd7 {[%clk 0:02:55.3]} 8. dxc5 {[%clk 0:03:01]}
8... Na5 {[%clk 0:02:54.7]} 9. Qb4 {[%clk 0:02:55.5]} 9... Nd5 {[%clk
0:02:43.3]} 10. Qd2 {[%clk 0:02:53.5]} 10... Bxc5 {[%clk 0:02:42.8]} 11. Ne5
{[%clk 0:02:48.5]} 11... O-O {[%clk 0:02:26.7]} 12. Nxd7 {[%clk 0:02:47.7]}
12... Qxd7 {[%clk 0:02:26.7]} 13. Bxd5 {[%clk 0:02:41.9]} 13... Qxd5 {[%clk
0:02:14.3]} 14. Nc3 {[%clk 0:02:35.6]} 14... Qxd2 {[%clk 0:02:12.3]} 15. Bxd2
{[%clk 0:02:36.5]} 15... Nc6 {[%clk 0:02:08.7]} 16. Ne4 {[%clk 0:02:35.4]} 16...
Bb4 {[%clk 0:02:06.3]} 17. Bxb4 {[%clk 0:02:32.1]} 17... Nxb4 {[%clk 0:02:06.3]}
18. Nd6 {[%clk 0:02:32.5]} 18... Rfd8 {[%clk 0:01:55.5]} 19. Nxc4 {[%clk
0:02:28.7]} 19... Rac8 {[%clk 0:01:55.3]} 20. Rfc1 {[%clk 0:02:23.4]} 20... b5
{[%clk 0:01:51.5]} 21. Ne5 {[%clk 0:02:19.1]} 21... f6 {[%clk 0:01:46.9]} 22.
Nf3 {[%clk 0:02:13.6]} 22... Nc2 {[%clk 0:01:33.8]} 23. Rab1 {[%clk 0:02:12.4]}
23... b4 {[%clk 0:01:34.3]} 24. Rd1 {[%clk 0:02:05.8]} 24... e5 {[%clk 0:01:25]}
25. Rxd8+ {[%clk 0:02:00.9]} 25... Rxd8 {[%clk 0:01:25.9]} 26. Rc1 {[%clk
0:02:01.4]} 26... Nd4 {[%clk 0:01:09.6]} 27. Nxd4 {[%clk 0:02:01.2]} 27... Rxd4
{[%clk 0:01:06]} 28. Rc8+ {[%clk 0:01:25.4]} 28... Kf7 {[%clk 0:01:06.1]} 29.
Rc7+ {[%clk 0:01:26.3]} 29... Kg6 {[%clk 0:01:06.5]} 30. Rxa7 {[%clk 0:01:26.2]}
30... Rd2 {[%clk 0:01:06.6]} 31. a3 {[%clk 0:01:26.7]} 31... Rxe2 {[%clk
0:01:00.5]} 32. axb4 {[%clk 0:01:25.9]} 32... Rxb2 {[%clk 0:01:00.6]} 33. Rb7
{[%clk 0:01:26.3]} 33... e4 {[%clk 0:00:58.5]} 34. b5 {[%clk 0:01:26.8]} 34...
h5 {[%clk 0:00:55.5]} 35. h4 {[%clk 0:01:25.6]} 35... Kf5 {[%clk 0:00:55.1]} 36.
Rxg7 {[%clk 0:01:24.7]} 36... Rxb5 {[%clk 0:00:55.1]} 37. Re7 {[%clk 0:01:15.4]}
37... Rb4 {[%clk 0:00:52.1]} 38. Kg2 {[%clk 0:01:13.2]} 38... Rb3 {[%clk
0:00:51.9]} 39. Ra7 {[%clk 0:01:11]} 39... Rb5 {[%clk 0:00:47.4]} 40. Ra2 {[%clk
0:01:05.5]} 40... Re5 {[%clk 0:00:47.5]} 41. Rc2 {[%clk 0:01:00.2]} 41... Kg6
{[%clk 0:00:42.3]} 42. Rc1 {[%clk 0:00:55.3]} 42... Kf5 {[%clk 0:00:42.2]} 43.
Kf1 {[%clk 0:00:50.2]} 43... e3 {[%clk 0:00:38.6]} 44. fxe3 {[%clk 0:00:42.7]}
44... Rxe3 {[%clk 0:00:35.5]} 45. Kf2 {[%clk 0:00:43.1]} 45... Re5 {[%clk
0:00:35.2]} 46. Rc4 {[%clk 0:00:42.6]} 46... Ra5 {[%clk 0:00:35.1]} 47. Rc3
{[%clk 0:00:42.3]} 47... Rb5 {[%clk 0:00:35.3]} 48. Kf3 {[%clk 0:00:42.5]} 48...
Ra5 {[%clk 0:00:35.7]} 49. Rb3 {[%clk 0:00:42.7]} 49... Rc5 {[%clk 0:00:35.9]}
50. Rd3 {[%clk 0:00:42.8]} 50... Ra5 {[%clk 0:00:36.3]} 51. Rd4 {[%clk
0:00:41.8]} 51... Ra3+ {[%clk 0:00:35.9]} 52. Kg2 {[%clk 0:00:42.4]} 52... Ra2+
{[%clk 0:00:35.3]} 53. Kh3 {[%clk 0:00:42.3]} 53... Ra3 {[%clk 0:00:35.8]} 54.
Rd8 {[%clk 0:00:41.3]} 54... Rb3 {[%clk 0:00:34.1]} 55. Rh8 {[%clk 0:00:40.4]}
55... Kg6 {[%clk 0:00:34.2]} 56. Rg8+ {[%clk 0:00:40.9]} 56... Kf5 {[%clk
0:00:34.5]} 57. Rg7 {[%clk 0:00:40.2]} 57... Ra3 {[%clk 0:00:34.1]} 58. Rb7
{[%clk 0:00:39.9]} 58... Rc3 {[%clk 0:00:34]} 59. Rb5+ {[%clk 0:00:40.4]} 59...
Kg6 {[%clk 0:00:34.2]} 60. Rb4 {[%clk 0:00:40.7]} 60... Ra3 {[%clk 0:00:34.3]}
61. Rf4 {[%clk 0:00:41.1]} 61... Rc3 {[%clk 0:00:34.5]} 62. Kg2 {[%clk
0:00:41.7]} 62... Ra3 {[%clk 0:00:34.7]} 63. Rf2 {[%clk 0:00:42.1]} 63... Rb3
{[%clk 0:00:34.8]} 64. Rf3 {[%clk 0:00:43]} 64... Rb2+ {[%clk 0:00:35]} 65. Rf2
{[%clk 0:00:43.1]} 65... Rb3 {[%clk 0:00:35.2]} 66. Rd2 {[%clk 0:00:36.6]} 66...
Ra3 {[%clk 0:00:35.3]} 67. Kf2 {[%clk 0:00:36.8]} 67... Rb3 {[%clk 0:00:35.4]}
68. Rd4 {[%clk 0:00:37.4]} 68... Ra3 {[%clk 0:00:35.4]} 69. Rf4 {[%clk
0:00:37.1]} 69... Rb3 {[%clk 0:00:35.2]} 70. Re4 {[%clk 0:00:37.1]} 70... Ra3
{[%clk 0:00:35.4]} 71. Re3 {[%clk 0:00:37.5]} 71... Ra2+ {[%clk 0:00:35.6]} 72.
Kf3 {[%clk 0:00:38.1]} 72... Ra1 {[%clk 0:00:36.2]} 73. Kf4 {[%clk 0:00:37.7]}
73... Rf1+ {[%clk 0:00:36.2]} 74. Rf3 {[%clk 0:00:38.3]} 74... Rxf3+ {[%clk
0:00:36.4]} 75. Kxf3 {[%clk 0:00:38.7]} 75... Kf5 {[%clk 0:00:36.6]} 76. Ke3
{[%clk 0:00:32.2]} 76... Kg4 {[%clk 0:00:35.9]} 77. Kf2 {[%clk 0:00:32.2]} 77...
f5 {[%clk 0:00:35.9]} 78. Kg2 {[%clk 0:00:32.4]} 78... f4 {[%clk 0:00:36.2]} 79.
gxf4 {[%clk 0:00:32.6]} 79... Kxf4 {[%clk 0:00:36.8]} 80. Kh3 {[%clk 0:00:32.7]}
80... Kf3 {[%clk 0:00:37.1]} 81. Kh2 {[%clk 0:00:33.6]} 81... Kg4 {[%clk
0:00:37.6]} 82. Kg2 {[%clk 0:00:34.5]} 82... Kxh4 {[%clk 0:00:38.1]} 83. Kh2
{[%clk 0:00:35.4]} 83... Kg4 {[%clk 0:00:38.7]} 84. Kh1 {[%clk 0:00:36.3]} 84...
h4 {[%clk 0:00:39.2]} 85. Kg1 {[%clk 0:00:37.2]} 85... Kg3 {[%clk 0:00:39.4]}
86. Kh1 {[%clk 0:00:38.1]} 86... h3 {[%clk 0:00:40]} 87. Kg1 {[%clk 0:00:39]}
87... h2+ {[%clk 0:00:40.4]} 88. Kh1 {[%clk 0:00:39.9]} 88... Kh3 {[%clk
0:00:40.9]} 1/2-1/2

[Event "Early-Titled-Tuesday-Blitz-February-27-2024"]
[Site "Chess.com"]
[Date "2024.02.27"]
[Round "4"]
[White "ChessSkool"]
[Black "platy3"]
[Result "0-1"]
[WhiteElo "2736"]
[BlackElo "2945"]
[TimeControl "180+1"]
[EndTime "8:39:07 PST"]
[Termination "platy3 won by checkmate"]

1. d4 {[%clk 0:03:00.9]} 1... Nf6 {[%clk 0:02:58]} 2. Nf3 {[%clk 0:03:01]} 2...
d5 {[%clk 0:02:57.9]} 3. c3 {[%clk 0:03:01.1]} 3... e6 {[%clk 0:02:55.5]} 4. Bf4
{[%clk 0:03:01]} 4... c5 {[%clk 0:02:54.5]} 5. e3 {[%clk 0:03:01.2]} 5... Qb6
{[%clk 0:02:53.7]} 6. Qc2 {[%clk 0:02:53.4]} 6... Nc6 {[%clk 0:02:53.4]} 7. Nbd2
{[%clk 0:02:53.7]} 7... Be7 {[%clk 0:02:53]} 8. h3 {[%clk 0:02:54]} 8... Bd7
{[%clk 0:02:52.9]} 9. Ne5 {[%clk 0:02:49.3]} 9... Rc8 {[%clk 0:02:51.9]} 10.
Nxd7 {[%clk 0:02:37.7]} 10... Nxd7 {[%clk 0:02:52.8]} 11. Qb3 {[%clk 0:02:38.1]}
11... c4 {[%clk 0:02:50.9]} 12. Qxb6 {[%clk 0:02:38.3]} 12... axb6 {[%clk
0:02:48]} 13. a3 {[%clk 0:02:38.4]} 13... b5 {[%clk 0:02:48.2]} 14. g4 {[%clk
0:02:34.6]} 14... Nb6 {[%clk 0:02:48.3]} 15. O-O-O {[%clk 0:02:12.6]} 15... Na4
{[%clk 0:02:43.2]} 16. Kc2 {[%clk 0:02:12.8]} 16... O-O {[%clk 0:02:41.2]} 17.
Bg2 {[%clk 0:02:12.9]} 17... Ra8 {[%clk 0:02:35.9]} 18. e4 {[%clk 0:02:10.4]}
18... Rfd8 {[%clk 0:02:33.4]} 19. exd5 {[%clk 0:02:06.4]} 19... exd5 {[%clk
0:02:33.2]} 20. Rhe1 {[%clk 0:02:07.1]} 20... h6 {[%clk 0:02:30.9]} 21. Nf1
{[%clk 0:02:05]} 21... Bg5 {[%clk 0:02:23.8]} 22. Bg3 {[%clk 0:01:50.4]} 22...
Rd7 {[%clk 0:02:07.6]} 23. h4 {[%clk 0:01:30.5]} 23... Be7 {[%clk 0:02:03.3]}
24. Ne3 {[%clk 0:01:30.1]} 24... Nb6 {[%clk 0:02:02.5]} 25. Ra1 {[%clk
0:01:17.7]} 25... Bf8 {[%clk 0:02:01.4]} 26. f4 {[%clk 0:01:17.7]} 26... Re8
{[%clk 0:01:52.9]} 27. f5 {[%clk 0:01:09.2]} 27... Bd6 {[%clk 0:01:28.4]} 28.
Nxd5 {[%clk 0:00:48.7]} 28... Rxe1 {[%clk 0:01:25.6]} 29. Bxe1 {[%clk
0:00:44.9]} 29... Nxd5 {[%clk 0:01:16]} 30. Bxd5 {[%clk 0:00:45.8]} 30... Re7
{[%clk 0:01:16.7]} 31. Bd2 {[%clk 0:00:38.5]} 31... Bg3 {[%clk 0:01:13.7]} 32.
a4 {[%clk 0:00:25.3]} 32... bxa4 {[%clk 0:00:36.2]} 33. Rxa4 {[%clk 0:00:26.2]}
33... Bxh4 {[%clk 0:00:36]} 34. Ra8+ {[%clk 0:00:24.1]} 34... Kh7 {[%clk
0:00:36]} 35. Bxc4 {[%clk 0:00:23.4]} 35... Rc7 {[%clk 0:00:33.9]} 36. Kd3
{[%clk 0:00:17.4]} 36... Bf6 {[%clk 0:00:30.5]} 37. Bf4 {[%clk 0:00:17]} 37...
Rd7 {[%clk 0:00:30.6]} 38. Be3 {[%clk 0:00:15.3]} 38... Ne5+ {[%clk 0:00:30.6]}
39. Kc2 {[%clk 0:00:07.1]} 39... Nxc4 {[%clk 0:00:31]} 40. Bc1 {[%clk
0:00:07.9]} 40... Bg5 {[%clk 0:00:24.9]} 41. b3 {[%clk 0:00:05.6]} 41... Bxc1
{[%clk 0:00:21.2]} 42. bxc4 {[%clk 0:00:05.4]} 42... Bf4 {[%clk 0:00:20]} 43. c5
{[%clk 0:00:05.5]} 43... Re7 {[%clk 0:00:20.4]} 44. Kd3 {[%clk 0:00:05.5]} 44...
h5 {[%clk 0:00:20.4]} 45. gxh5 {[%clk 0:00:05.2]} 45... Kh6 {[%clk 0:00:20.7]}
46. Ra7 {[%clk 0:00:05.7]} 46... Rc7 {[%clk 0:00:16.6]} 47. Kc4 {[%clk
0:00:03.4]} 47... Kxh5 {[%clk 0:00:14.9]} 48. Kb5 {[%clk 0:00:03.8]} 48... g5
{[%clk 0:00:13.9]} 49. fxg6 {[%clk 0:00:03.2]} 49... fxg6 {[%clk 0:00:14.7]} 50.
d5 {[%clk 0:00:03.9]} 50... Rxc5+ {[%clk 0:00:12.2]} 51. Kxc5 {[%clk 0:00:02.4]}
51... Be3+ {[%clk 0:00:12.8]} 52. Kb5 {[%clk 0:00:02.3]} 52... Bxa7 {[%clk
0:00:13.7]} 53. d6 {[%clk 0:00:03]} 53... Bb8 {[%clk 0:00:10.9]} 54. Kb6 {[%clk
0:00:03.6]} 54... Bxd6 {[%clk 0:00:11.1]} 55. Kxb7 {[%clk 0:00:03.8]} 55... g5
{[%clk 0:00:11.3]} 56. Kc6 {[%clk 0:00:04.7]} 56... Bf8 {[%clk 0:00:10.5]} 57.
c4 {[%clk 0:00:04.6]} 57... g4 {[%clk 0:00:11]} 58. c5 {[%clk 0:00:05.3]} 58...
g3 {[%clk 0:00:11.5]} 59. Kd7 {[%clk 0:00:04.8]} 59... Bxc5 {[%clk 0:00:12.4]}
60. Kc6 {[%clk 0:00:04.9]} 60... g2 {[%clk 0:00:12.5]} 61. Kb5 {[%clk
0:00:05.8]} 61... g1=Q {[%clk 0:00:12.5]} 62. Kc6 {[%clk 0:00:06.6]} 62... Bf8
{[%clk 0:00:12.8]} 63. Kb7 {[%clk 0:00:07.5]} 63... Qc5 {[%clk 0:00:12.9]} 64.
Ka8 {[%clk 0:00:08.4]} 64... Qb5 {[%clk 0:00:13]} 65. Ka7 {[%clk 0:00:08.9]}
65... Kg6 {[%clk 0:00:13.9]} 66. Ka8 {[%clk 0:00:09.8]} 66... Kf5 {[%clk
0:00:14.8]} 67. Ka7 {[%clk 0:00:10.2]} 67... Ke6 {[%clk 0:00:15.7]} 68. Ka8
{[%clk 0:00:11.1]} 68... Kd5 {[%clk 0:00:16.6]} 69. Ka7 {[%clk 0:00:12]} 69...
Kc6 {[%clk 0:00:17.5]} 70. Ka8 {[%clk 0:00:12.9]} 70... Qb7# {[%clk 0:00:18.4]}
0-1

[Event "Early-Titled-Tuesday-Blitz-February-27-2024"]
[Site "Chess.com"]
[Date "2024.02.27"]
[Round "4"]
[White "BillCoe"]
[Black "Knightmare1014"]
[Result "1-0"]
[WhiteElo "2103"]
[BlackElo "2263"]
[TimeControl "180+1"]
[EndTime "8:39:07 PST"]
[Termination "BillCoe won by checkmate"]

1. e4 {[%clk 0:03:00.9]} 1... c5 {[%clk 0:03:00.4]} 2. Nf3 {[%clk 0:03:00.9]}
2... e6 {[%clk 0:03:00.9]} 3. d4 {[%clk 0:03:01.1]} 3... cxd4 {[%clk 0:03:01.4]}
4. Nxd4 {[%clk 0:03:01.8]} 4... a6 {[%clk 0:03:01.9]} 5. Bd3 {[%clk 0:03:02.2]}
5... Nf6 {[%clk 0:03:00.9]} 6. c4 {[%clk 0:03:01.5]} 6... Nc6 {[%clk 0:02:54.4]}
7. Be3 {[%clk 0:02:59.4]} 7... Bb4+ {[%clk 0:02:46.8]} 8. Nd2 {[%clk 0:02:58.1]}
8... O-O {[%clk 0:02:30.5]} 9. O-O {[%clk 0:02:56.5]} 9... Qc7 {[%clk 0:02:30]}
10. Nxc6 {[%clk 0:02:36]} 10... dxc6 {[%clk 0:02:24.7]} 11. a3 {[%clk
0:02:32.6]} 11... Be7 {[%clk 0:02:23.7]} 12. Qc2 {[%clk 0:02:30.8]} 12... e5
{[%clk 0:02:23.7]} 13. Nf3 {[%clk 0:02:29.5]} 13... Be6 {[%clk 0:02:19.6]} 14.
b4 {[%clk 0:02:28.5]} 14... c5 {[%clk 0:02:15.3]} 15. Rfd1 {[%clk 0:02:19.1]}
15... Rac8 {[%clk 0:01:59.6]} 16. bxc5 {[%clk 0:02:13.4]} 16... Bxc5 {[%clk
0:01:58.7]} 17. Bxc5 {[%clk 0:02:10.2]} 17... Qxc5 {[%clk 0:01:59.6]} 18. Rdc1
{[%clk 0:02:01.3]} 18... Rfd8 {[%clk 0:01:55.2]} 19. h3 {[%clk 0:01:59.2]} 19...
h6 {[%clk 0:01:55.2]} 20. a4 {[%clk 0:01:56.9]} 20... Qd6 {[%clk 0:01:44.1]} 21.
Rd1 {[%clk 0:01:46.8]} 21... Qc7 {[%clk 0:01:27.6]} 22. c5 {[%clk 0:01:40.8]}
22... Nd7 {[%clk 0:01:26.6]} 23. Rac1 {[%clk 0:01:19.5]} 23... Qxc5 {[%clk
0:01:18.5]} 24. Qxc5 {[%clk 0:01:17]} 24... Nxc5 {[%clk 0:01:17.9]} 25. Bc2
{[%clk 0:01:07.9]} 25... f6 {[%clk 0:01:12.1]} 26. Ne1 {[%clk 0:00:53.8]} 26...
Nb3 {[%clk 0:01:04.9]} 27. Rb1 {[%clk 0:00:47.3]} 27... Nc5 {[%clk 0:00:56.6]}
28. f3 {[%clk 0:00:43.1]} 28... Kf7 {[%clk 0:00:54.7]} 29. Nd3 {[%clk
0:00:36.1]} 29... Nxd3 {[%clk 0:00:46.8]} 30. Rxb7+ {[%clk 0:00:35.3]} 30... Kg8
{[%clk 0:00:32.9]} 31. Rxd3 {[%clk 0:00:34.9]} 31... Rxd3 {[%clk 0:00:24.8]} 32.
Bxd3 {[%clk 0:00:35.8]} 32... Rc1+ {[%clk 0:00:22.5]} 33. Kh2 {[%clk 0:00:34.4]}
33... Rc6 {[%clk 0:00:18.1]} 34. Ra7 {[%clk 0:00:31.3]} 34... Bc8 {[%clk
0:00:17.8]} 35. Ra8 {[%clk 0:00:30.1]} 35... Kf7 {[%clk 0:00:17]} 36. Ra7+
{[%clk 0:00:27.3]} 36... Kg6 {[%clk 0:00:17.2]} 37. Kg3 {[%clk 0:00:27.3]} 37...
Rc3 {[%clk 0:00:16.7]} 38. Bxa6 {[%clk 0:00:26.4]} 38... Be6 {[%clk 0:00:15.6]}
39. Bb5 {[%clk 0:00:25]} 39... Rc1 {[%clk 0:00:14.8]} 40. Re7 {[%clk 0:00:25]}
40... Bb3 {[%clk 0:00:12.3]} 41. a5 {[%clk 0:00:24]} 41... Ra1 {[%clk
0:00:12.5]} 42. a6 {[%clk 0:00:24]} 42... Ba4 {[%clk 0:00:10.8]} 43. Bxa4 {[%clk
0:00:20.5]} 43... Rxa4 {[%clk 0:00:10.9]} 44. a7 {[%clk 0:00:21.4]} 44... Ra2
{[%clk 0:00:10.2]} 45. Rb7 {[%clk 0:00:21.2]} 45... Ra3 {[%clk 0:00:09.3]} 46.
h4 {[%clk 0:00:21.4]} 46... h5 {[%clk 0:00:08.8]} 47. Kf2 {[%clk 0:00:19.7]}
47... Ra2+ {[%clk 0:00:09.2]} 48. Ke3 {[%clk 0:00:19.9]} 48... Ra1 {[%clk
0:00:07.7]} 49. Kd3 {[%clk 0:00:18.9]} 49... Rd1+ {[%clk 0:00:07.6]} 50. Kc4
{[%clk 0:00:18.9]} 50... Rc1+ {[%clk 0:00:07.3]} 51. Kd5 {[%clk 0:00:19.3]}
51... Rd1+ {[%clk 0:00:06.4]} 52. Kc6 {[%clk 0:00:19.9]} 52... Rc1+ {[%clk
0:00:06.8]} 53. Kd7 {[%clk 0:00:20.3]} 53... Ra1 {[%clk 0:00:06.8]} 54. Kc8
{[%clk 0:00:19.8]} 54... Ra2 {[%clk 0:00:06.4]} 55. Kb8 {[%clk 0:00:19.4]} 55...
Ra3 {[%clk 0:00:06.4]} 56. a8=Q {[%clk 0:00:19.4]} 56... Rxa8+ {[%clk
0:00:06.4]} 57. Kxa8 {[%clk 0:00:20.3]} 57... Kh6 {[%clk 0:00:07]} 58. Kb8
{[%clk 0:00:18.2]} 58... Kh7 {[%clk 0:00:07.9]} 59. Kc7 {[%clk 0:00:18.4]} 59...
Kh8 {[%clk 0:00:08.8]} 60. Kd6 {[%clk 0:00:18.4]} 60... Kg8 {[%clk 0:00:08.9]}
61. Ke6 {[%clk 0:00:18.3]} 61... Kf8 {[%clk 0:00:09.4]} 62. Rb8# {[%clk
0:00:17.4]} 1-0

[Event "Early-Titled-Tuesday-Blitz-February-27-2024"]
[Site "Chess.com"]
[Date "2024.02.27"]
[Round "4"]
[White "ACollins05"]
[Black "sorch29"]
[Result "1-0"]
[WhiteElo "2587"]
[BlackElo "2416"]
[TimeControl "180+1"]
[EndTime "8:39:10 PST"]
[Termination "ACollins05 won by resignation"]

1. d4 {[%clk 0:03:00.9]} 1... Nf6 {[%clk 0:02:59.1]} 2. c4 {[%clk 0:03:00.8]}
2... g6 {[%clk 0:02:59]} 3. Nc3 {[%clk 0:03:00.8]} 3... Bg7 {[%clk 0:02:59.7]}
4. e4 {[%clk 0:02:59.9]} 4... d6 {[%clk 0:03:00.4]} 5. h3 {[%clk 0:02:54.3]}
5... O-O {[%clk 0:03:00.2]} 6. Bg5 {[%clk 0:02:54.1]} 6... c5 {[%clk 0:02:56.1]}
7. d5 {[%clk 0:02:54.4]} 7... e6 {[%clk 0:02:56.4]} 8. Bd3 {[%clk 0:02:54.3]}
8... exd5 {[%clk 0:02:52]} 9. cxd5 {[%clk 0:02:55.2]} 9... Re8 {[%clk 0:02:52]}
10. Nf3 {[%clk 0:02:54.8]} 10... h6 {[%clk 0:02:51.9]} 11. Be3 {[%clk 0:02:54]}
11... Na6 {[%clk 0:02:36]} 12. Qd2 {[%clk 0:02:51.9]} 12... Nc7 {[%clk
0:02:35.4]} 13. Bxh6 {[%clk 0:02:39]} 13... Ncxd5 {[%clk 0:01:49]} 14. Nxd5
{[%clk 0:02:37.7]} 14... Nxd5 {[%clk 0:01:48.8]} 15. Bxg7 {[%clk 0:02:37.3]}
15... Kxg7 {[%clk 0:01:47.2]} 16. O-O {[%clk 0:02:37.3]} 16... Nb4 {[%clk
0:01:36.4]} 17. Rad1 {[%clk 0:02:35.8]} 17... Qf6 {[%clk 0:01:32.5]} 18. a3
{[%clk 0:02:24.9]} 18... Nxd3 {[%clk 0:01:05.6]} 19. Qxd3 {[%clk 0:02:25.7]}
19... Qxb2 {[%clk 0:01:05.9]} 20. Rfe1 {[%clk 0:02:10.1]} 20... Be6 {[%clk
0:00:57.6]} 21. Qxd6 {[%clk 0:02:09.4]} 21... Rac8 {[%clk 0:00:41.1]} 22. Rb1
{[%clk 0:02:01.7]} 22... Qxa3 {[%clk 0:00:37.4]} 23. Rxb7 {[%clk 0:02:00.1]}
23... a5 {[%clk 0:00:20.6]} 24. Ng5 {[%clk 0:01:48.8]} 24... Qc3 {[%clk
0:00:20.2]} 25. Reb1 {[%clk 0:01:19.4]} 25... Qf6 {[%clk 0:00:18.8]} 26. f4
{[%clk 0:01:03.8]} 26... c4 {[%clk 0:00:14.4]} 27. e5 {[%clk 0:00:58.8]} 27...
Qf5 {[%clk 0:00:04.8]} 28. Rc1 {[%clk 0:00:29.5]} 28... Kg8 {[%clk 0:00:05]} 29.
Nxe6 {[%clk 0:00:27]} 29... Qxe6 {[%clk 0:00:02.8]} 30. Qxe6 {[%clk 0:00:22.7]}
30... Rxe6 {[%clk 0:00:03.5]} 31. Ra7 {[%clk 0:00:23.3]} 31... Rc5 {[%clk
0:00:02.1]} 32. Ra1 {[%clk 0:00:19.7]} 32... c3 {[%clk 0:00:01.7]} 33. Kf2
{[%clk 0:00:17.1]} 33... Rec6 {[%clk 0:00:01.6]} 34. Ke2 {[%clk 0:00:16.4]}
34... Kg7 {[%clk 0:00:02.2]} 35. Rc1 {[%clk 0:00:10.6]} 35... c2 {[%clk
0:00:03.1]} 36. Kd2 {[%clk 0:00:10.3]} 36... Rd5+ {[%clk 0:00:03.6]} 37. Ke2
{[%clk 0:00:10.5]} 37... Rc4 {[%clk 0:00:04.1]} 38. g3 {[%clk 0:00:09.9]} 38...
a4 {[%clk 0:00:04.7]} 39. Ra8 {[%clk 0:00:08.9]} 39... g5 {[%clk 0:00:05]} 40.
fxg5 {[%clk 0:00:05.6]} 40... Rxe5+ {[%clk 0:00:05.4]} 41. Kd3 {[%clk
0:00:05.4]} 41... Rc7 {[%clk 0:00:04.7]} 42. Rxc2 {[%clk 0:00:04.5]} 42... Rd5+
{[%clk 0:00:04.6]} 43. Ke4 {[%clk 0:00:05]} 43... Rxc2 {[%clk 0:00:04.7]} 44.
Kxd5 {[%clk 0:00:05.1]} 44... Ra2 {[%clk 0:00:04]} 45. Ke4 {[%clk 0:00:04.9]}
45... Ra3 {[%clk 0:00:04.6]} 46. Kf4 {[%clk 0:00:05.1]} 46... Ra1 {[%clk
0:00:05.3]} 47. h4 {[%clk 0:00:05.4]} 47... a3 {[%clk 0:00:05.7]} 48. Kg4 {[%clk
0:00:05.5]} 48... a2 {[%clk 0:00:05.9]} 49. h5 {[%clk 0:00:06]} 49... Kh7 {[%clk
0:00:06.1]} 50. Ra7 {[%clk 0:00:05.6]} 50... Kg7 {[%clk 0:00:06.7]} 51. g6
{[%clk 0:00:05.8]} 51... Kh6 {[%clk 0:00:07]} 52. gxf7 {[%clk 0:00:05]} 52...
Kg7 {[%clk 0:00:06.7]} 53. h6+ {[%clk 0:00:03.6]} 53... Kf8 {[%clk 0:00:07.4]}
54. h7 {[%clk 0:00:03.9]} 54... Rh1 {[%clk 0:00:08]} 55. Rxa2 {[%clk 0:00:03.6]}
55... Rxh7 {[%clk 0:00:08.4]} 56. Ra8+ {[%clk 0:00:04.1]} 56... Kg7 {[%clk
0:00:08.3]} 57. f8=Q+ {[%clk 0:00:03.6]} 57... Kg6 {[%clk 0:00:06]} 58. Qf5+
{[%clk 0:00:04.5]} 58... Kg7 {[%clk 0:00:06]} 59. Ra7+ {[%clk 0:00:05.2]} 1-0